Cogmind - Beta 11.1 @@@ ROGUE MODE // 2022.06.09 @ 00:54:35 Player: Ruxi Result: Destroyed by G-34 Mercenary with Small Laser Performance ------------- Evolutions (0) 0 Regions Visited (4) 800 Robots Destroyed (19) 95 Value Destroyed (360) 360 Prototype IDs (29) 580 Alien Tech Used (0) 0 Bonus (-265) -265 TOTAL SCORE: 1570 Bonus ------- Aligned with FarCom 300 Friendly Fire -565 Cogmind --------- Core Integrity 0/250 Matter 176/300 Energy 200/200 System Corruption 2% Temperature Cool (6) Movement Treading (1040) Ox11 Location -9/Mines Parts ------- > --- POWER (1) -------- Cold Fusion Reactor > --- PROPULSION (2) --- Light Treads Compact Wheel > --- UTILITY (2) ------ Humpback > --- WEAPON (2) ------- 8R-AWN's Boregun Longsword +1 > --- INVENTORY (35) --- Compact Wheel Gravmag Array Makeshift Hover Unit Humpback Lightpack 2.0 Gravity Neutralizer Advanced Transmission Jammer Hardened Light Armor Plating EX Chip 1 EX Chip 1 EX Chip 1 EX Chip 1 EX Chip 1 EX Chip 1 EX Chip 1 EX Chip 1 EX Chip 1 EX Chip 2 EX Chip 2 Improved System Guard AS-neutralizer No. 17b Autogun Shotgun Improved Assault Rifle Improved Assault Rifle Grenade Launcher Grenade Launcher Deploy-a-Sentry Peak State ------------ > --- POWER ------------ Cold Fusion Reactor > --- PROPULSION ------- Compact Wheel Compact Wheel > --- UTILITY ---------- Humpback > --- WEAPON ----------- 8R-AWN's Boregun Longsword +1 > --- INVENTORY -------- Light Treads Compact Wheel Gravmag Array Makeshift Hover Unit Humpback Lightpack 2.0 Gravity Neutralizer Advanced Transmission Jammer Hardened Light Armor Plating EX Chip 1 EX Chip 1 EX Chip 1 EX Chip 1 EX Chip 1 EX Chip 1 EX Chip 1 EX Chip 1 EX Chip 1 EX Chip 2 EX Chip 2 Improved System Guard AS-neutralizer No. 17b Autogun Shotgun Improved Assault Rifle Improved Assault Rifle Grenade Launcher Grenade Launcher Deploy-a-Sentry [Rating: 39] Favorites ----------- Power Ion Engine Engine Ion Engine Reactor Cold Fusion Reactor Propulsion Compact Wheel Treads Light Treads Leg Aluminum Leg Wheel Compact Wheel Hover Unit Gravmag Array Utility Humpback Device Structural Scanner Storage Humpback Protection Hardened Light Armor Plating Weapon Mining Claw Energy Gun Small Laser Ballistic Gun Improved Assault Rifle Launcher Grenade Launcher Slashing Weapon Mining Claw Build | -11 -10 -10 -10 -9 ------- Run | Scr Mat Min Exi Min Slots Evolved . | . . . . . Power . | . . . . . Propulsion . | . . . . . Utility . | . . . . . Weapon . | . . . . . Parts Attached 60 | . 28 1 30 1 Power 4 | . 2 . 2 . Engine 3 | . 2 . 1 . Core . | . . . . . Reactor 1 | . . . 1 . Propulsion 20 | . 13 . 6 1 Treads 9 | . 6 . 2 1 Leg . | . . . . . Wheel 10 | . 7 . 3 . Hover 1 | . . . 1 . Flight . | . . . . . Utility 18 | . 7 1 10 . Device 9 | . 3 . 6 . Storage 5 | . 3 . 2 . Processor . | . . . . . Hackware . | . . . . . Protection 4 | . 1 1 2 . Artifact . | . . . . . Weapon 18 | . 6 . 12 . Energy Gun 2 | . 2 . . . Energy Cannon . | . . . . . Ballistic Gun 8 | . 3 . 5 . Ballistic Cannon . | . . . . . Launcher 2 | . . . 2 . Special Weapon . | . . . . . Impact Weapon . | . . . . . Slashing Weapon 6 | . 1 . 5 . Piercing Weapon . | . . . . . Special Melee Weapon . | . . . . . Unidentified Prototypes 6 | . 1 . 5 . Parts Lost 6 | . 2 . 3 1 Power 1 | . . . 1 . Propulsion 2 | . . . 1 1 Utility 2 | . 1 . 1 . Weapon 1 | . 1 . . . Highest Loss Streak 3 | . 2 . 3 1 To Critical Strikes 1 | . . . 1 . Average Slot Usage (%) 75 | . 98 100 64 85 Engine 7 | . 14 14 4 . Reactor 6 | . . . 9 14 Treads 3 | . 11 . . . Wheel 13 | . 12 28 12 28 Hover 5 | . . . 7 . Device 3 | . 10 . 1 . Storage 13 | . 14 14 13 14 Protection 1 | . 2 13 . . Energy Gun 1 | . 4 . . . Ballistic Gun 7 | . 22 28 . 14 Slashing Weapon 9 | . . . 13 14 Naked Turns . | . . . . . Heaviest Build 221 | 11 96 96 221 221 Greatest Support 40 | 20 40 32 32 32 Greatest Overweight (x) 10 | . 3 2 10 6 Average Overweight (x) 2 | . . 2 3 6 Largest Inventory Capacity 35 | . 25 25 35 35 Average Capacity 26 | . 15 25 29 35 Most Carried 35 | . 25 25 35 33 Average Carried 19 | . 12 24 21 32 Final Capacity 35 | 8 25 25 35 35 Final Carried 33 | 6 25 25 33 32 Class Distribution -------------------- 55% | Mutant 44% | Hauler-Mutant Dominant Class ---------------- Mutant | -10/Materials Mutant | -10/Mines Hauler-Mutant | -10/Exiles Hauler-Mutant | -9/Mines Resources | -11 -10 -10 -10 -9 ----------- Run | Scr Mat Min Exi Min Matter Collected 1288 | 200 478 . 558 52 Remotely 20 | . . . 20 . Salvage Created 884 | . 519 . 257 108 Parts 51 | . 40 . 7 4 Haulers Intercepted 2 | . 2 . . . Recyclers Shooed . | . . . . . Parts Field Recycled . | . . . . . Retrieved Matter . | . . . . . Parts Self-Destructed . | . . . . . Prevented . | . . . . . Kills | -11 -10 -10 -10 -9 ------- Run | Scr Mat Min Exi Min Combat Hostiles Destroyed 13 | . 7 . 5 1 Melee 2 | . . . 1 1 Guns 7 | . 7 . . . AOE 4 | . . . 4 . Classes Destroyed 6 | . 5 . 1 . Worker 4 | . 2 . . 2 Builder 1 | . 1 . . . Hauler 2 | . 2 . . . Watcher 3 | . 3 . . . Grunt 8 | . 7 . . 1 Assembled 7 | . . . 7 . Best Kill Streak 4 | . 4 . 4 2 Combat Bots Only 4 | . 2 . 4 1 Max Kills in Single Turn 3 | . 1 . 3 1 Gunslinging . | . . . . . Exploded 2 | . . . 2 . Melee 1 | . . . 1 1 Uniques/NPCs Destroyed 4 | . . . 4 . EX-DEC (-10/Exiles) EX-BIN (-10/Exiles) EX-HEX (-10/Exiles) 8R-AWN (-10/Exiles) Combat | -11 -10 -10 -10 -9 -------- Run | Scr Mat Min Exi Min Damage Taken 1856 | . 479 . 1238 139 Core 258 | . 83 . 164 11 Absorbed by Shields . | . . . . . Core Remaining (%) 100 | 100 . . . . Volleys Fired 84 | . 62 . 17 5 Largest 2 | . 2 . 2 1 Hottest 60 | . 60 . 60 30 Shots Fired 154 | . 115 . 34 5 Gun 148 | . 115 . 28 5 Cannon . | . . . . . Launcher 6 | . . . 6 . Special . | . . . . . Kinetic 121 | . 88 . 28 5 Thermal 15 | . 15 . . . Explosive 6 | . . . 6 . Electromagnetic 12 | . 12 . . . Robot Hit Streak 9 | . 9 . 9 1 Robot Miss Streak 3 | . 3 . 2 2 Penetration Max . | . . . . . Secondary Targets . | . . . . . Shots Hit Robots 130 | . 72 . 51 7 Core Hits 55 | . 26 . 26 3 Critical Kills . | . . . . . Critical Parts Destroyed 2 | . 1 . . 1 Critical Strikes 3 | . 1 . 1 1 Destroy 2 | . 1 . . 1 Sever 1 | . . . 1 . Melee Attacks 35 | . 3 . 27 5 Impact . | . . . . . Slashing 35 | . 3 . 27 5 Piercing . | . . . . . Sneak Attacks 3 | . 1 . . 2 Combat Hostiles . | . . . . . Follow-up Attacks . | . . . . . Damage Inflicted 3694 | . 1011 . 2317 366 Guns 1376 | . 965 . 380 31 Cannons . | . . . . . Explosions 407 | . . . 407 . Melee 1911 | . 46 . 1530 335 Ramming . | . . . . . Kinetic 1212 | . 801 . 380 31 Thermal 114 | . 114 . . . Explosive 407 | . . . 407 . Electromagnetic 50 | . 50 . . . Impact . | . . . . . Slashing 1911 | . 46 . 1530 335 Piercing . | . . . . . Highest Corruption 2 | . 2 2 2 2 Average Corruption 2 | . 2 2 2 2 Corruption Purged . | . . . . . Corruption Blocked . | . . . . . Effects 56 | . 14 2 38 2 Message Errors 19 | . 3 1 13 2 Matter Fused 11 | . 1 . 10 . Heat Flow Errors 7 | . 3 . 4 . Energy Discharges 3 | . 2 . 1 . Parts Rejected 1 | . . . 1 . Data Loss (minor) 7 | . 1 . 6 . Data Loss (major) 1 | . . . 1 . Misfires 2 | . 2 . . . Alerts 3 | . . 1 2 . Weapon Failures 2 | . 2 . . . Overload Shots . | . . . . . Overflow Damage 208 | . 6 . 199 3 Projectiles . | . . . . . Explosions 5 | . . . 5 . Melee 203 | . 6 . 194 3 Knockbacks . | . . . . . Impact . | . . . . . Kinetic . | . . . . . Secondary . | . . . . . Self-Inflicted Damage 23 | . . . 23 . Shots 1 | . . . 1 . Rammed . | . . . . . Targets Rammed . | . . . . . Kicked . | . . . . . Crushed . | . . . . . Highest Temperature 238 | . 238 . 220 3 Average Temperature 51 | . 46 . 59 3 Received Heat Transfer 380 | . 264 . 20 96 Siege Activations . | . . . . . Robots Corrupted . | . . . . . Combat Hostiles . | . . . . . Parts Fried . | . . . . . Impact Corruptions . | . . . . . Robots Melted . | . . . . . Combat Hostiles . | . . . . . Parts Melted . | . . . . . Heat Transferred 250 | . 250 . . . Parts Sabotaged . | . . . . . Parts Stolen . | . . . . . Parts Stripped . | . . . . . Power Chain Reactions . | . . . . . Missiles Intercepted . | . . . . . Alert | -11 -10 -10 -10 -9 ------- Run | Scr Mat Min Exi Min Peak Influence 167 | . 167 14 . 40 Initial 14 | . . 14 . . Average 35 | . 42 14 . 10 Maximum Alert Level . | . . . . . Low Security (%) 100 | . 100 100 . 100 Level 1 . | . . . . . Level 2 . | . . . . . Level 3 . | . . . . . Level 4 . | . . . . . Level 5 . | . . . . . High Security . | . . . . . Max Security . | . . . . . Squads Dispatched 3 | . 3 . . . Investigation 2 | . 2 . . . Extermination . | . . . . . Reinforcement 1 | . 1 . . . Assault . | . . . . . Garrison . | . . . . . Intercept . | . . . . . Searches Triggered . | . . . . . Construction Impeded . | . . . . . Haulers Reinforced . | . . . . . Active Scanning Responses . | . . . . . Cargo Convoy Interrupts . | . . . . . Stealth | -11 -10 -10 -10 -9 --------- Run | Scr Mat Min Exi Min Distress Signals 1 | . 1 . . . Communications Jammed . | . . . . . Distress Signals . | . . . . . Times Spotted 83 | . 16 . 64 3 Peak Tracking Total 6 | . 3 . 6 3 Tactical Retreats 19 | . 1 . 18 . Traps | -11 -10 -10 -10 -9 ------- Run | Scr Mat Min Exi Min Traps Triggered 3 | . 3 . . . Indirectly . | . . . . . Trap Hack Attempts . | . . . . . Triggered . | . . . . . Disarmed . | . . . . . Reprogrammed . | . . . . . Reused . | . . . . . Traps Extracted . | . . . . . Installed . | . . . . . Triggered . | . . . . . Machines | -11 -10 -10 -10 -9 ---------- Run | Scr Mat Min Exi Min Machines Disabled 4 | . . . 4 . Max in Single Turn 1 | . . . 1 . Machines Sabotaged . | . . . . . Garrisons Compromised . | . . . . . Overloaded Fab Kills . | . . . . . Hacking | -11 -10 -10 -10 -9 --------- Run | Scr Mat Min Exi Min Machines Accessed 7 | . 5 1 1 . Terminals 4 | . 4 . . . Fabricators . | . . . . . Repair Stations . | . . . . . Recycling Units 1 | . 1 . . . Scanalyzers . | . . . . . Garrison Access . | . . . . . Total Hacks 19 | . 17 1 1 . Successful 11 | . 9 1 1 . Failed 8 | . 8 . . . Catastrophic . | . . . . . Database Lockouts . | . . . . . Manual 17 | . 16 . 1 . Terminals 14 | . 14 . . . Fabricators . | . . . . . Repair Stations . | . . . . . Recycling Units 3 | . 3 . . . Scanalyzers . | . . . . . Garrison Access . | . . . . . Terminal Hacks 4 | . 2 1 1 . Open Door 1 | . . 1 . . Branch Access Points 1 | . 1 . . . Unreport Threat 1 | . 1 . . . EX-Prototype ID Bank 1 | . . . 1 . Fabricator Hacks . | . . . . . Repair Station Hacks . | . . . . . Recycling Unit Hacks . | . . . . . Scanalyzer . | . . . . . Garrison Access Hacks . | . . . . . Unauthorized Hacks 7 | . 7 . . . Terminals 4 | . 4 . . . Botnet 3 | . 3 . . . Operators 1 | . 1 . . . Fabricators . | . . . . . Repair Stations . | . . . . . Recycling Units 3 | . 3 . . . Reject 1 | . 1 . . . Recyclers 1 | . 1 . . . Mask 1 | . 1 . . . Scanalyzers . | . . . . . Garrison Access . | . . . . . Data Cores Recovered . | . . . . . Used . | . . . . . Hacking Detections 4 | . 4 . . . Full Trace Events . | . . . . . Feedback Events . | . . . . . Feedback Blocked . | . . . . . Robot Schematics Acquired . | . . . . . Robots Built . | . . . . . Authchips . | . . . . . Time . | . . . . . Total Robot Build Rating . | . . . . . Part Schematics Acquired . | . . . . . Parts Built . | . . . . . Authchips . | . . . . . Time . | . . . . . Total Part Build Rating . | . . . . . Parts Repaired . | . . . . . Time . | . . . . . Parts Recycled . | . . . . . Recycled Matter . | . . . . . Retrieved Matter . | . . . . . Retrieved Components . | . . . . . Parts Scanalyzed . | . . . . . Part Schematics Acquired . | . . . . . Parts Damaged . | . . . . . Bothacking | -11 -10 -10 -10 -9 ------------ Run | Scr Mat Min Exi Min Used RIF Installer . | . . . . . Robots Hacked . | . . . . . Non-combat . | . . . . . Combat . | . . . . . Robot Hacks Applied . | . . . . . Relay Couplers Released . | . . . . . Fabnet Peak Effective % . | . . . . . Robots Rewired . | . . . . . Allies Hacked . | . . . . . Hacks Repelled . | . . . . . Allies | -11 -10 -10 -10 -9 -------- Run | Scr Mat Min Exi Min Total Allies . | . . . . . Largest Group . | . . . . . Highest-Rated Group . | . . . . . Highest-Rated Ally . | . . . . . Total Orders . | . . . . . Ally Attacks 11 | . . . 11 . Total Damage 608 | . . . 608 . Kills 4 | . . . 4 . Allies Corrupted . | . . . . . Allies Melted . | . . . . . Turrets Deployed 3 | . . . 3 . Intel | -11 -10 -10 -10 -9 ------- Run | Scr Mat Min Exi Min Robot Analysis Total . | . . . . . Derelict Logs Recovered 1 | . . . . 1 Drone Launches . | . . . . . Drone Recoveries . | . . . . . Exploration | -11 -10 -10 -10 -9 ------------- Run | Scr Mat Min Exi Min Turns Passed 4118 | . 1020 192 2798 108 Spaces Moved 1914 | 1 554 146 1168 45 Core . | . . . . . Treads 192 | . 158 . 34 . Legs 94 | 1 93 . . . Wheels 1238 | . 303 146 744 45 Hover 390 | . . . 390 . Flight . | . . . . . Fastest Speed 60 | 120 100 130 60 190 Average Speed 187 | 120 133 130 221 190 Slowest Speed 560 | 120 160 130 560 190 Overloaded Moves . | . . . . . Propulsion Burnouts . | . . . . . Robots Hopped . | . . . . . Cave-ins Triggered . | . . . . . Exploration Rate (%) 44 | 2 75 55 73 17 Regions Visited 4 Branch Regions 3 Pre-discovered Areas . | . . . . . Known Exits Taken 1 | . 1 . . . Unknown Exits Taken 3 | 1 . 1 1 . Scrap Searched . | . . . . . Spaces Dug 2 | . 2 . . . Terrain Destroyed 22 | . 2 . 16 4 Melee 2 | . 2 . . . Projectile 4 | . . . . 4 AOE 16 | . . . 16 . Terrain Rammed . | . . . . . Walls Destroyed . | . . . . . Machines Disabled . | . . . . . Actions | -11 -10 -10 -10 -9 --------- Run | Scr Mat Min Exi Min Total 2247 | . 709 149 1332 57 Wait 27 | . 21 . 5 1 Move 1910 | . 553 145 1167 45 Hop . | . . . . . Pick Up 86 | . 28 1 57 . Fast Attach 9 | . 4 . 5 . Attach 15 | . . 1 13 1 Detach 6 | . . . 6 . Swap 36 | . 24 . 12 . Drop 39 | . 14 2 23 . Fire 84 | . 62 . 17 5 Melee 35 | . 3 . 27 5 Ram . | . . . . . Kick . | . . . . . Crush . | . . . . . Escape Stasis . | . . . . . Rewire . | . . . . . Trap . | . . . . . Miscellaneous . | . . . . . Route ------- -11/Scrapyard -10/Materials (discovered 3 exits: [*Mat x2] / *Min) -10/Mines -10/Exiles -9/Mines History --------- Turn | Location | Event 1 | -11/Scrapyard | Discovered new exit (range 0) 1 | -11/Scrapyard | Entered Materials 242 | -10/Materials | Discovered new exit (range 16) 305 | -10/Materials | Build established: Mutant 632 | -10/Materials | Discovered new exit (range 16) 641 | -10/Materials | Identified exit to Mines 1021 | -10/Materials | Entered Mines 1028 | -10/Mines | Found the Drone Emporium 1035 | -10/Mines | Found Prototype Device 1208 | -10/Mines | Deemed a non-threat by the Exiles lab entrance 1208 | -10/Mines | Discovered new exit (range 5) 1213 | -10/Mines | Entered Exiles 1253 | -10/Exiles | Met 8R-AWN 1271 | -10/Exiles | Met EX-HEX 1278 | -10/Exiles | Identified Decoy Drone Bay 1366 | -10/Exiles | Met EX-BIN 1382 | -10/Exiles | Aligned with FarCom system 1383 | -10/Exiles | Given EX-Vault access code 1413 | -10/Exiles | Opened EX-Vault 1420 | -10/Exiles | Found Deploy-a-Sentry 1422 | -10/Exiles | Found Deploy-a-Sentry 1424 | -10/Exiles | Found Deploy-a-Sentry 1426 | -10/Exiles | Found Longsword +1 1452 | -10/Exiles | Warned to stay clear of 0b10 Research branches 1492 | -10/Exiles | Met EX-DEC 1504 | -10/Exiles | DAS Turret deployed 1581 | -10/Exiles | DAS Turret deployed 1649 | -10/Exiles | DAS Turret deployed 1838 | -10/Exiles | Discovered new exit (range 14) 2006 | -10/Exiles | Attacked by the Exiles 2008 | -10/Exiles | Allies destroyed EX-DEC 2014 | -10/Exiles | Allies destroyed EX-BIN 2037 | -10/Exiles | Allies destroyed EX-HEX 2063 | -10/Exiles | Core integrity fell below 50% 2090 | -10/Exiles | Lost 3 parts (1p1n1u) 2101 | -10/Exiles | Found Prototype Ballistic Gun 2126 | -10/Exiles | Core integrity fell below 20% 2136 | -10/Exiles | Destroyed 8R-AWN 2145 | -10/Exiles | Found Prototype Device 2146 | -10/Exiles | Identified AS-neutralizer No. 17b 2582 | -10/Exiles | Build established: Hauler-Mutant 2869 | -10/Exiles | Found Lightpack 2.0 3346 | -10/Exiles | Found Deploy-a-Sentry 3979 | -10/Exiles | Identified 8R-AWN's Boregun 4011 | -10/Exiles | Stole three prototypes: Longsword +1, Lightpack 2.0, Deploy-a-Sentry 4011 | -10/Exiles | Entered Mines 4066 | -9/Mines | Learned 4 Materials zone layouts 4119 | -9/Mines | Destroyed by G-34 Mercenary with Small Laser Last Messages --------------- 04028_ Acquired 21 matter. 04045_ Sneak attack on K-01 Serf. 04045_ K-01 Serf destroyed. 04047_ Acquired 30 matter. 04066_ Acquired derelict log, extracted data. Data stored: Materials zone layouts (x4). 04091_ >H/FEA3S:JN63RUG/TGPUXBIWJFQDZ6UQTCINCY9 04102_ HV Slug penetrates Wall. 04107_ Critical hit (Burn: +37). 04108_ Destroyed Lgt. Nuclear Core. 04110_ 5UNOITKDNHWQKIZ#P0K,ARS:EBU 04110_ G-47 Trooper destroyed. 04112_ HV Slug penetrates G-34 Mercenary. 04112_ G-34 Mercenary suffers critical hit (Destroy). 04112_ Destroyed Aluminum Leg. 04112_ HV Slug penetrates Wall. 04112_ Com. Wheel destroyed. 04115_ HV Slug penetrates Wall. 04117_ HV Slug penetrates G-34 Mercenary. 04117_ HV Slug penetrates Wall. Map ----- +----------------------------------------------------+ | ?????????????????????????????????????????????????? | | ?????????????????????????????????????????????????? | | ?????????????????????????????????????????????????? | | ?????????????????????????????????????????????????? | | ?????????????????????????????????????????????????? | | ?????????????????????????????????????????????????? | | ?????????????????????????????????????????????????? | | ?????????????????????????????????????????????????? | | ?????????????????????????????????????????????????? | | ?????????????????????????????????????????????????? | | ?????????????????????????????????????????????????? | | ?????????????????????????????????????????????????? | | ?????????????????????????????????????????????????? | | ?????????????????????????????????????????????????? | | ???????####??????????????????????????????????????? | | ???????# ??????????????????????????????????????? | | ???????# ??????????????????????????????????????? | | ???????# #??????????????????????????????????????? | | ???????# #??????????????????????????????????????? | | ???????# #??????????????????????????????????????? | | ???????# #??????????????????????????????????????? | | ???????# #??????????????????????????????????????? | | ???????# #???####???#####???????????????????????? | | ???????# #??## ##### ##????? ????????????? | | ???????# #??# #### #???????????? | | ???????# #??# @ #???????????????? | | ???????# #?## %gg ##???????????????? | | ??????## ### ## ; u##????????????????? | | ??????# ###? ##;#?????????????????? | | ??????# ##????#??#?????????????????? | | ??????# ### ##??????????????????????????? | | ##???## #####?## ##???????????????????????????? | | #?### ##??????####????????????????????????????? | | ### ##???????????????????????????????????????? | | ## #????????????????????????????????????????? | | * ##????????????????????????????????????????? | | #?????????????????????????????????????????? | | #### ##?????????????????????????????????????????? | | ???####??????????????????????????????????????????? | | ?????????????????????????????????????????????????? | | ?????????????????????????????????????????????????? | | ?????????????????????????????????????????????????? | | ?????????????????????????????????????????????????? | | ?????????????????????????????????????????????????? | | ?????????????????????????????????????????????????? | | ?????????????????????????????????????????????????? | | ?????????????????????????????????????????????????? | | ?????????????????????????????????????????????????? | | ?????????????????????????????????????????????????? | | ?????????????????????????????????????????????????? | +----------------------------------------------------+ Best States ------------- Heat Dissipation 35 Energy Generation 17 Energy Capacity 250 Matter Stores 300 Matter Capacity 300 Sight Range 16 Terrain Scan Density 10 Additional Mass Support 12 Armor Coverage 150 Evasion (%) 55 Recoil Reduction 2 Item Schematics ----------------- None Robot Schematics ------------------ None Fabricated ------------ Nothing Alien Tech Used ----------------- None Achievements -------------- None Challenges ------------ None Game ------ Seed TransportMeleePropulsion Manual? 0 Play Time 00:48:06 Cumulative 119.6 hours Start 2022.06.08 @ 23:43:36 End 2022.06.09 @ 00:54:35 Sessions 1 Manual Loads 0 Difficulty Rogue Special Mode None Game No. 78 Rogue 76 Adventurer 0 Explorer 2 Win Type - Total 0 Types 0/0/0/0/0/0/0/0/0 Lore% 27 Gallery% 38 Achievement% 32 Wizard Run 0 Options --------- ASCII 0 Keyboard 0 Movement Numpad Keybinds 0 Fullscreen 1 Font 18/SmallcapsGlow Map View 76x50 Tactical HUD 1 Map Filters NONE Filters NONE Steam 1 RUN: 71cfd6f3-5ea4-4d4c-912b-8c3f86f20be7